Workbook

Sheet April 2012 - March 2013
B3: Door Step School & Asha Silicon Valley
B4: Educational Activity Center
B5: Estimated Budget (10 Centers) April 2012-March 2013
B6: Sr. No. | C6: Particulars | D6: Rate/ Cost per Month | E6: No. of Months | F6: No. of Persons | G6: Total in Rs.
B7: I | C7: MANAGEMENT COST
B8: 1 | C8: Management Salary | D8: 6325 | E8: 12 | G8: =D8*E8 -> 75900 | I8: =H8*10%+H8 -> 0
C9: Total of I | G9: =G8 -> 75900
B10: II | C10: STAFF WELFARE
B11: 1 | C11: Mediclaim of staff (Part Payment)
C12: Coordinators | D12: =900*50% -> 450 | F12: 1 | G12: =D12*F12 -> 450
C13: Supervisor | D13: =900*50% -> 450 | F13: 2 | G13: =D13*F13 -> 900
C14: Teachers | D14: =900*75% -> 675 | F14: 24 | G14: =D14*F14 -> 16200
B15: 2 | C15: Staff Events | D15: 300 | F15: 28 | G15: =D15*F15 -> 8400 | H15: Associate Director (1) + Coordinator (1) + Supervisor (2) + Teachers (24) = 28 Persons
C16: Total of IV | G16: =G12+G13+G14+G15 -> 25950
B17: III | C17: PROGRAM EXPENSES
B18: 1 | C18: Teachers Salaries
C19: April to May | D19: ='Salary Break-up'!E14 -> 4340 | E19: 2 | F19: 24 | G19: =D19*E19*F19 -> 208320 | H19: Basic + PF (12%) + Travel Allowance (12%) - Details in next sheet
C20: June to March | D20: ='Salary Break-up'!E18 -> 4712 | E20: 10 | F20: 24 | G20: =D20*E20*F20 -> 1130880 | H20: Rs. 300 Annual Salary Increase effective June 2012
B21: 2 | C21: Coordinator Salaries
C22: April to May | D22: ='Salary Break-up'!C14 -> 10376.94 | E22: 2 | F22: 1 | G22: =D22*E22*F22 -> 20753.88 | H22: Basic + PF (Rs. 780) + Travel Allowance (18%) - Details in next sheet
C23: June to March | D23: ='Salary Break-up'!C18 -> 11816.481 | E23: 10 | F23: 1 | G23: =D23*E23*F23 -> 118164.81 | H23: Salary Increase effective June 2012
B24: 3 | C24: Supervisors Salaries
C25: April to May | D25: ='Salary Break-up'!D14 -> 6981 | E25: 2 | F25: 2 | G25: =D25*E25*F25 -> 27924 | H25: Basic + PF (12%) + Travel Allowance (18%) - Details in next sheet
C26: June to March | D26: ='Salary Break-up'!D18 -> 8028.15 | E26: 10 | F26: 2 | G26: =D26*E26*F26 -> 160563 | H26: Salary Increase effective June 2012
B27: 4 | C27: Teaching & Educational Material | D27: 16 | E27: 12 | F27: 440 | G27: =D27*E27*F27 -> 84480
B28: 5 | C28: Picnic/Events | D28: 50 | F28: 440 | G28: =D28*F28 -> 22000
B29: 6 | C29: Miscellaneous | D29: 20 | F29: 440 | G29: =D29*F29 -> 8800
B30: 7 | C30: Transport | D30: 250 | E30: 10 | F30: 100 | G30: =D30*E30*F30 -> 250000
C31: Total - III | G31: =SUM(G19:G30) -> 2031885.69
C32: Total of I+ II+III | G32: =G9+G16+G31 -> 2133735.69
B33: IV | C33: ADMINISTRATIVE EXPENSES
B34: 1 | C34: Telephone, stationary, postage, admin staff and other organizational costs @ approx 10% of Total of I+ II+III | G34: =G32*10% -> 213373.569
C35: Grand Total I+ II+III+IV( Rounded) | G35: =CEILING(G32+G34,1000) -> 2348000
C36: Funding by Builders (20% of total cost) | G36: =G35*20% -> 469600
C37: Funding Requested ( 80% of total cost) | G37: =CEILING(G35-G36,1000) -> 1879000
B39: Funding Per Site / Month ( rounded) | F39: Rs. | G39: =G35/10/12 -> 19566.66667
B40: Funding Per Child Per Month | F40: Rs. | G40: =G39/44 -> 444.6969697
B44: Notes:
B45: a. | C45: Staff Events: | D45: We organize Annual Day program for staff once a year. In addition to this we also organize cluster level review meetings for our entire project to access the progress of each project. Staff event budget head cost include the cost involved for this activity.
B46: b. | C46: Miscellaneous: | D46: When we run classes we provide some material which is necessary to the children of that class e.g. a toilet is not provided by the builder, we need to provide a mobile toilet for the children and teachers on the construction sites, Housekeeping material etc.
B47: c. | C47: Picnic and Events: | D47: We organize picnic at once in year, We also organise events like Diwali, Makarsankrat, Republic Day, Independence Day etc.
B48: d. | C48: No. of children: | D48: Assumption - Per site 44 children
B49: e. | C49: Teaching & Educational Material: | D49: Teaching and Educational Materials cost is lower than last year because we have been able to generate funds for this from individual donors. Hence the reduction.

Sheet Salary Break-up
C10: Co-ordinator | D10: Supervisor | E10: Teacher
A11: April - May 2011 | B11: Basic Salary Per Month | C11: 8133 | D11: 5370 | E11: 3500
B12: PF @12% of Basic Salary or Rs. 780 which ever is less | C12: 780 | D12: =D11*12% -> 644.4 | E12: =E11*12% -> 420
B13: Travelling | C13: =C11*18% -> 1463.94 | D13: =D11*18% -> 966.6 | E13: =E11*12% -> 420
B14: Total (Salary + Allowances) Per Month | C14: =SUM(C11:C13) -> 10376.94 | D14: =SUM(D11:D13) -> 6981 | E14: =SUM(E11:E13) -> 4340
A15: June 2011 - March 2012 | B15: Basic Salary Per Month | C15: =C11*15%+C11 -> 9352.95 | D15: =D11*15%+D11 -> 6175.5 | E15: =E11+300 -> 3800
B16: PF @12% of Basic Salary or Rs. 780 which ever is less | C16: 780 | D16: =D15*12% -> 741.06 | E16: =E15*12% -> 456
B17: Travelling | C17: =C15*18% -> 1683.531 | D17: =D15*18% -> 1111.59 | E17: =E15*12% -> 456
B18: Total (Salary + Allowances) Per Month | C18: =SUM(C15:C17) -> 11816.481 | D18: =SUM(D15:D17) -> 8028.15 | E18: =SUM(E15:E17) -> 4712
